[Event "5th Baskent University Open 2022"]
[Site "Ankara"]
[Date "2022.07.05"]
[Round "6.19"]
[White "Eke, Salih"]
[Black "Cevizci, Yusuf Baran"]
[Result "1-0"]
[ECO "E10"]
[WhiteElo "2195"]
[BlackElo "2144"]
[Annotator "TA"]
[PlyCount "110"]
[EventDate "2022.07.02"]
[EventType "swiss"]
[EventCountry "TUR"]
[SourceTitle "playchess.com"]
[Source "ChessBase"]
[SourceQuality "1"]
[TimeControl "5400+30"]

{[%evp 13,110,57,81,39,166,143,128,39,59,55,245,215,243,242,300,300,307,302,553,545,552,433,759,785,805,734,989,895,918,913,922,902,896,470,622,597,788,627,620,458,439,314,477,479,29997,0,0,0,29997,25,413,379,647,631,646,590,589,189,420,427,429,429,379,64,48,47,165,16,25,27,93,99,213,207,216,214,207,215,207,204,212,212,207,-461,95,-499,281,183,160,97,1291,1252,3356,2113,5622,5130,6358,6143,5085]} 1. d4 {[%emt 0:01:00]} Nf6 {[%emt 0:06:00]} 2. c4 {[%emt 0:00:30]} e6 {[%emt 0:00:30]} 3. Nf3 {[%emt 0:00:30]} c5 {[%emt 0:03:30]} 4. d5 {[%emt 0:02:30]} b5 {[%emt 0:02:30]} 5. dxe6 {[%emt 0:00:30]} fxe6 {[%emt 0:00:00]} 6. cxb5 {[%emt 0:00:30]} d5 {[%emt 0:00:00]} 7. Nc3 {[%emt 0:00:00]} Bb7 {[%emt 0:00:30]} 8. e4 $1 {[%emt 0:00:00] E10: Blumenfeld Gambit.} Be7 {[%emt 0:03:30]} (8... Nbd7 $1 $14) 9. Ng5 $18 {[%emt 0:10:30]} Qd6 {[%emt 0:02:30] [#]} 10. b6 $146 {[%emt 0:08:30]} (10. f4 $16 {aiming for e5.} Nbd7 11. e5 Nxe5 12. fxe5 Qxe5+ 13. Qe2 Qxe2+ 14. Nxe2) ({Predecessor:} 10. f4 e5 11. exd5 exf4 12. Bc4 Qe5+ 13. Qe2 Nbd7 14. Ne6 Qxe2+ 15. Bxe2 Kf7 16. Nxf4 {1-0 (25) Oussedik,E (2155)-Quinonez Garcia,S (2379) Medellin 2017}) 10... a6 {[%emt 0:01:30]} 11. f4 {[%emt 0:02:30]} e5 $2 {[%emt 0:00:30]} (11... Qxb6 $14 12. f5 (12. e5 Nfd7 $11) 12... O-O) 12. exd5 {[%emt 0:03:30]} exf4 {[%emt 0:00:30]} 13. Qa4+ {[%emt 0:03:30]} Nbd7 {[%emt 0:02:30]} 14. Bxf4 {[%emt 0:00:30]} Qxb6 {[%emt 0:00:30]} 15. O-O-O {[%emt 0:01:30]} Nh5 $2 {[%emt 0:06:30]} (15... O-O 16. d6 Bd8 17. Bc4+ Kh8 18. Nf7+ Rxf7) 16. Ne6 {[%emt 0:04:30]} Qb4 {[%emt 0:02:30]} 17. Be3 {[%emt 0:02:30]} Rc8 {[%emt 0:01:30]} (17... Qxa4 $142 18. Nxa4 Bd6) 18. Qc2 {[%emt 0:01:30]} g6 {[%emt 0:07:30]} 19. a3 {[%emt 0:04:30]} Qb6 {[%emt 0:01:30]} 20. Be2 {[%emt 0:02:30]} Nhf6 {[%emt 0:01:30]} 21. Bc4 {[%emt 0:03:30]} Ne5 {[%emt 0:12:30]} 22. Qa4+ {[%emt 0:00:00]} Nfd7 {[%emt 0:00:30]} 23. d6 {[%emt 0:01:00]} Bf6 {[%emt 0:04:30]} 24. Nc7+ {[%emt 0:01:30]} Kd8 {[%emt 0:00:30]} 25. Be6 {[%emt 0:01:30] Threatens to win with Bxd7.} Bc6 {[%emt 0:01:30]} 26. Qf4 {[%emt 0:00:30][%cal Oe3c5]} Rb8 {[%emt 0:01:30][%csl Gb8][%cal Rb6b2]} 27. Qf2 {[%emt 0:00:30]} Rf8 {[%emt 0:02:30]} (27... Qa5 $142 28. Rhe1 Ng4 29. Bxg4 Bxc3) 28. Rhf1 {[%emt 0:01:30]} Bg7 {[%emt 0:00:30]} (28... Kc8 $18 29. Qe2 Kb7) 29. Qh4+ {[%emt 0:08:30]} (29. Bg5+ Kc8 30. Qxf8+ (30. N7d5 Bxd5 31. Qxf8+ Bxf8 $11) 30... Bxf8 31. Rxf8+ Kb7 $14) 29... Bf6 {[%emt 0:00:30][%csl Gb8][%cal Rb6b2]} 30. Qf2 {[%emt 0:01:30] Really sharp!} Bg7 $1 {[%emt 0:00:00] [#]} 31. Qc2 {[%emt 0:04:30]} (31. Bg5+ Kc8 32. Qxf8+ (32. N7d5 Bxd5 33. Qxf8+ Bxf8 $11) 32... Bxf8 33. Rxf8+ Kb7 $14) (31. Qxf8+ $1 {[%mdl 512] mates} Bxf8 32. Rxf8+ $1 {[%mdl 512]} Nxf8 33. Bg5#) 31... Rxf1 $4 {[%emt 0:03:00][%mdl 8192]} (31... Nd3+ $1 $11 {and Black stays safe.} 32. Kd2 Nxb2 33. Rxf8+ Bxf8 34. Bg5+ Kc8) 32. Rxf1 {[%emt 0:00:30][%cal Ob2b4] Black must now prevent b4!} Qxb2+ {[%emt 0:01:30]} (32... Rb7 33. N3d5 Bxd5) 33. Qxb2 {[%emt 0:03:30]} Nd3+ {[%emt 0:00:30]} 34. Kd1 {[%emt 0:00:30][%cal Ob2b8] White wants to mate with Qxb8+!} Nxb2+ {[%emt 0:01:30]} 35. Kd2 $2 {[%emt 0:03:30]} (35. Kc2 Nd3 36. Kxd3) 35... Na4 $2 {[%emt 0:09:30]} (35... Nc4+ 36. Bxc4 Rb2+ 37. Kc1 Bxc3) 36. Nxa4 {[%emt 0:00:30]} Bxa4 {[%emt 0:00:30]} 37. Rf7 {[%emt 0:08:18]} (37. Bg5+ Kc8 $14) 37... Rb2+ {[%emt 0:00:30]} 38. Ke1 $2 {[%emt 0:00:09]} (38. Kc1 $18 Rc2+ 39. Kb1 Rb2+ 40. Ka1 Rb6+ 41. Rxg7 Rxd6 42. Bxd7 (42. Rxh7 Rd1+ 43. Kb2 Kxc7 $16) 42... Bxd7 43. Na8 (43. Rxh7 Rd1+ 44. Kb2 Kxc7 $16)) 38... Bc3+ $14 {[%emt 0:00:30]} 39. Kf1 {[%emt 0:00:07][%cal Of7f8] Intending Rf8+! and mate.} Kc8 {[%emt 0:04:02]} ({Black should play} 39... Rb1+ $14 40. Kf2 Rb2+ 41. Kg3 Be5+ 42. Bf4 Bxf4+ 43. Kxf4 (43. Rxf4 Bc6 $11) 43... Rf2+ 44. Ke3 Rxf7 45. Bxf7 Kc8) 40. h3 {[%emt 0:05:02]} (40. Nxa6 $2 Bb5+ 41. Kg1 Rb1+ 42. Kf2 Rf1+ 43. Kg3 Rxf7 44. Bxf7 Bxa6 $19) (40. Rxh7 $18 a5 41. Nd5) 40... Be5 $1 $11 {[%emt 0:02:56]} 41. Bxc5 {[%emt 0:02:47] And now Nd5 would win.} Rc2 {[%emt 0:00:20]} (41... Bg3 $1 $11 {keeps the balance.}) 42. Be3 $16 {[%emt 0:03:47] Strongly threatening Nd5. 0x0.0005ea79df9edp-1022s more active pieces.} (42. Nxa6 $6 Bh2 43. Bxd7+ Bxd7 $11) 42... Bxd6 {[%emt 0:05:27]} (42... Rb2 $16) 43. Nd5 $1 $18 {[%emt 0:00:30]} (43. Nxa6 Bb5+ 44. Kg1 Rb2 45. Bxd7+ (45. Rxh7 $2 Rb1+ 46. Bc1 Rxc1+ 47. Kf2 Rf1+ 48. Ke3 Re1+ 49. Kd4 Rxe6 $19) 45... Bxd7 46. Rxh7 Rb1+ 47. Kf2 Rb2+ 48. Kg1 Rb1+ 49. Kf2 Rb2+ 50. Kg1 $11) 43... Bb5+ {[%emt 0:00:30]} 44. Kg1 {[%emt 0:00:30] a4 is the strong threat.} Re2 {[%emt 0:02:19] ( -> ...Re1+)} 45. Bxd7+ {[%emt 0:00:41]} (45. Rxh7 $2 Re1+ 46. Kf2 Rf1#) 45... Bxd7 {[%emt 0:00:30]} 46. Nb6+ {[%emt 0:00:30]} (46. Rxh7 Bc6 47. Kf1 Rb2 $11) 46... Kc7 {[%emt 0:00:30][%cal Oc7c6]} 47. Bf2 {[%emt 0:00:30]} (47. Rxh7 $6 Bg3 48. Rxd7+ Kc6 $16) 47... Kc6 {[%emt 0:00:30]} 48. Nd5 $4 {[%emt 0:00:30][%mdl 8192]} (48. Rxd7 Bc7 49. Rxh7 (49. Rf7 Rb2 $16) 49... Ra2) (48. Nxd7 $18 {and all is fine.} Rb2 49. g4) 48... Bc7 $2 {[%emt 0:00:30]} (48... Be8 $19 49. Nb4+ Bxb4 50. Rf6+ Bd6) 49. Rxd7 {[%emt 0:00:30][%mdl 8192]} Bd6 $4 {[%emt 0:00:30][%mdl 8192]} (49... Kxd7 $19 {avoids the disaster.} 50. Nxc7 Kxc7) 50. Nb6 {[%emt 0:00:30]} ({Weaker is} 50. Rxh7 Kxd5 51. Rd7 Ke6 $14) 50... Bc7 {[%emt 0:00:30] [#]} 51. Rf7 {[%emt 0:00:30]} ({White should try} 51. Rxh7 $1 Ra2 {[#]} 52. Rxc7+ $1 {[%mdl 512]} Kxc7 53. a4) 51... Rxf2 $4 {[%emt 0:00:30][%mdl 8192]} (51... Rb2 $16) 52. Kxf2 {[%emt 0:00:30] White is clearly winning.} (52. Rxf2 Bxb6 53. a4 Bxf2+ 54. Kxf2 Kc5 $19) 52... Bxb6+ {[%emt 0:00:30]} 53. Ke2 {[%emt 0:00:30]} Bc5 {[%emt 0:00:30]} 54. a4 {[%emt 0:00:30]} h6 {[%emt 0:00:30]} 55. Rf6+ {[%emt 0:00:30]} Kd5 {[%emt 0:00:30] Weighted Error Value: White=1.18/Black=1.19} 1-0

[Event "5th Baskent University Open 2022"]
[Site "Ankara"]
[Date "2022.07.05"]
[Round "6.21"]
[White "Turkmen, Ataberk"]
[Black "Yildiz, Serdar Murat"]
[Result "1-0"]
[ECO "B23"]
[WhiteElo "1935"]
[BlackElo "1736"]
[Annotator "TA"]
[PlyCount "83"]
[EventDate "2022.07.02"]
[EventType "swiss"]
[EventCountry "TUR"]
[SourceTitle "playchess.com"]
[Source "ChessBase"]
[SourceQuality "1"]
[TimeControl "5400+30"]

{[%evp 14,83,-21,-45,-25,-43,-25,-25,-16,-25,-4,-30,40,20,46,55,42,52,61,49,43,47,120,119,141,133,120,74,71,83,91,100,497,254,259,266,261,266,301,323,322,304,400,411,397,400,410,414,409,405,404,397,401,377,375,363,394,383,448,440,547,545,536,531,29992,29987,29987,29988,29997,29997,29998,29999]} 1. e4 {[%emt 0:01:00]} c5 {[%emt 0:01:00]} 2. Nc3 {[%emt 0:00:30]} e6 {[%emt 0:00:00]} 3. g3 {[%emt 0:01:30]} d5 {[%emt 0:00:00]} 4. d3 {[%emt 0:01:30]} Nc6 {[%emt 0:04:30]} 5. Bg2 {[%emt 0:00:00]} Nf6 {[%emt 0:06:30]} 6. Nge2 {[%emt 0:05:00]} Be7 {[%emt 0:09:30]} 7. O-O {[%emt 0:01:30]} d4 {[%emt 0:04:30]} 8. Nb1 {[%emt 0:00:30]} e5 {[%emt 0:01:30] B23: Closed Sicilian: Lines without g3.} 9. h3 {[%emt 0:02:30] [#]} b5 $146 {[%emt 0:04:30]} ({Predecessor:} 9... Be6 10. f4 g6 11. Nd2 Qd7 12. fxe5 Nxe5 13. Nf4 O-O 14. Nf3 Bd6 15. Nxe6 Nxf3+ 16. Qxf3 fxe6 {½-½ (59) Kuling,L (2240)-Lombardi,M (2071) Benidorm 2021}) 10. f4 {[%emt 0:02:30]} Bb7 {[%emt 0:08:30] Black has an edge.} 11. Nd2 {[%emt 0:00:30]} Bd6 {[%emt 0:03:30]} 12. Nf3 {[%emt 0:01:30]} Qc7 {[%emt 0:01:30]} (12... Nd7 $11) 13. c3 {[%emt 0:07:30]} Rd8 {[%emt 0:12:30]} (13... O-O) 14. cxd4 {[%emt 0:00:30]} cxd4 {[%emt 0:02:30]} 15. fxe5 {[%emt 0:09:30]} Nxe5 {[%emt 0:02:30]} 16. Nh4 {[%emt 0:13:30] aiming for Bg5.} (16. Nexd4 $2 Bc5 17. Bf4 Bxd4+ $19) (16. Bg5 $5 {[%cal Rf3h4]}) 16... Bc8 {[%emt 0:00:30]} 17. Bg5 {[%emt 0:00:00][%cal Bc1g5,Bg5f6,Bf6d8][%mdl 32]} Ng6 {[%emt 0:03:30]} ({Black should try} 17... Be7 $1 $14) 18. Rc1 $36 {[%emt 0:02:00][%mdl 2048] White is on the roll.} (18. Nxd4 $2 Nxh4 19. gxh4 (19. Bxf6 $2 gxf6 20. Nf5 Bc5+ 21. Kh1 Nxf5 $19) 19... Bc5 $19) 18... Qb8 {[%emt 0:03:30]} 19. Rxf6 {[%emt 0:10:30]} gxf6 {[%emt 0:02:30]} 20. Nxg6 {[%emt 0:01:30]} (20. Bxf6 $142 {Strongly threatening Nxg6.} O-O 21. Qd2 (21. Nxd4 Be5 $17) (21. Bxd8 Rxd8 22. Nf5 Be5 $16)) 20... Rg8 {[%emt 0:15:24][%mdl 64] Pin} 21. Bxf6 {[%emt 0:01:30]} Rxg6 {[%emt 0:00:11]} 22. Bxd8 {[%emt 0:06:30]} Bxg3 {[%emt 0:01:43][%mdl 8192] [#] Loses the game.} (22... Kxd8 $16 23. g4 (23. Nxd4 $2 Qb6 $19) 23... Bd7) 23. Rxc8 $1 {[%emt 0:01:30]} Bh2+ {[%emt 0:03:45]} (23... Qxc8 24. Nxg3) 24. Kh1 {[%emt 0:00:30]} Qxc8 {[%emt 0:00:00]} 25. Kxh2 {[%emt 0:01:30]} Qb8+ {[%emt 0:00:47]} 26. Kh1 {[%emt 0:00:00]} Qxd8 {[%emt 0:01:56]} 27. Nf4 {[%emt 0:02:00]} Rg5 {[%emt 0:01:14]} 28. Qc1 {[%emt 0:01:30]} Kf8 {[%emt 0:01:44]} 29. Nd5 {[%emt 0:00:30] Against Qf6} Rg6 {[%emt 0:03:56]} 30. Qc5+ {[%emt 0:00:30]} Qd6 {[%emt 0:00:00]} 31. Qxd4 {[%emt 0:05:30]} Qg3 {[%emt 0:00:03][%csl Gg6][%cal Rg3g2] [#]} 32. Qb4+ {[%emt 0:01:30]} Kg7 {[%emt 0:00:51][%csl Gg6][%cal Rg3g2]} 33. Qc3+ {[%emt 0:00:30]} Kf8 {[%emt 0:00:28][%csl Gg6][%cal Rg3g2]} 34. Qd2 {[%emt 0:00:30]} a5 {[%emt 0:00:41]} 35. Ne3 {[%emt 0:00:30]} Qf4 {[%emt 0:00:17]} 36. Qc1 {[%emt 0:02:27]} Rg5 {[%emt 0:01:52] Against Qc5+} 37. Qc8+ {[%emt 0:00:57]} Kg7 {[%emt 0:00:30]} 38. Nf5+ {[%emt 0:00:00]} Kg6 {[%emt 0:00:00]} 39. Qg8+ {[%emt 0:00:48] White mates.} Kf6 {[%emt 0:00:00]} 40. Qh8+ {[%emt 0:00:54]} Ke6 {[%emt 0:00:17]} 41. Qc8+ {[%emt 0:00:11]} Kf6 {[%emt 0:00:19]} 42. Qc6+ {[%emt 0:00:11] Weighted Error Value: White=0.13 (very precise) /Black=0.57} 1-0

[Event "5th Baskent University Open 2022"]
[Site "Ankara"]
[Date "2022.07.05"]
[Round "6.22"]
[White "Gursu, Ahmet Burak"]
[Black "Metin, Enis"]
[Result "0-1"]
[ECO "A33"]
[WhiteElo "1533"]
[BlackElo "1750"]
[Annotator "NA RC COMBH"]
[PlyCount "116"]
[EventDate "2022.07.02"]
[EventType "swiss"]
[EventCountry "TUR"]
[SourceTitle "playchess.com"]
[Source "ChessBase"]
[SourceQuality "1"]
[TimeControl "5400+30"]

1. e4 {[%emt 0:01:00]} c5 {[%emt 0:01:00]} 2. Nf3 {[%emt 0:00:30]} e6 {[%emt 0:00:00]} 3. c4 {[%emt 0:01:30]} a6 {[%emt 0:06:00]} 4. Nc3 {[%emt 0:03:30]} Qc7 {[%emt 0:01:30]} 5. g3 {[%emt 0:02:30]} Nf6 {[%emt 0:00:30]} 6. Bg2 {[%emt 0:02:30]} Be7 {[%emt 0:01:30]} 7. O-O {[%emt 0:02:30]} O-O {[%emt 0:01:30]} 8. b3 {[%emt 0:10:30]} Nc6 {[%emt 0:04:30]} 9. d4 {[%emt 0:08:30]} cxd4 {[%emt 0:06:30]} 10. Nxd4 {[%emt 0:00:30]} Bc5 {[%emt 0:01:30]} 11. Be3 {[%emt 0:06:30]} Qe5 {[%emt 0:02:30]} 12. Nxc6 {[%emt 0:16:30]} dxc6 {[%emt 0:00:30]} 13. Bxc5 {[%emt 0:00:30]} Qxc5 {[%emt 0:00:30]} 14. Na4 {[%emt 0:00:00]} Qa5 {[%emt 0:00:30]} 15. c5 {[%emt 0:04:00]} Rd8 {[%emt 0:03:30]} 16. Qe1 {[%emt 0:09:30]} Qxe1 {[%emt 0:04:30]} 17. Rfxe1 {[%emt 0:00:00]} e5 {[%emt 0:01:30]} 18. Nb6 {[%emt 0:02:00]} Rb8 {[%emt 0:00:00]} 19. Nc4 {[%emt 0:00:00]} Re8 {[%emt 0:04:00]} 20. Rad1 {[%emt 0:04:00]} Be6 {[%emt 0:00:30]} 21. Nd6 {[%emt 0:02:30]} Re7 {[%emt 0:02:30]} 22. f4 {[%emt 0:00:30]} g6 {[%emt 0:07:30]} 23. f5 {[%emt 0:04:02]} gxf5 {[%emt 0:00:30]} 24. Rf1 {[%emt 0:02:35]} Nxe4 {[%emt 0:00:30]} 25. Nxe4 {[%emt 0:01:46]} fxe4 {[%emt 0:00:30]} 26. Bxe4 {[%emt 0:00:00]} Ree8 {[%emt 0:00:30]} 27. Rf6 {[%emt 0:01:52]} Kg7 {[%emt 0:00:30]} 28. Rdf1 {[%emt 0:00:30]} Rbd8 {[%emt 0:00:00]} 29. h4 {[%emt 0:01:11]} Rd4 {[%emt 0:00:00]} 30. Bb1 {[%emt 0:02:45]} Red8 {[%emt 0:00:30]} 31. h5 {[%emt 0:00:59]} h6 {[%emt 0:00:30]} 32. R6f2 {[%emt 0:04:03]} Rd1 {[%emt 0:00:30]} 33. Bf5 {[%emt 0:02:17]} Rxf1+ {[%emt 0:00:30]} 34. Kxf1 {[%emt 0:00:30]} Rd1+ {[%emt 0:00:30]} 35. Ke2 {[%emt 0:00:30]} Ra1 {[%emt 0:00:30]} 36. Kd3 {[%emt 0:00:14]} Kf6 {[%emt 0:01:30]} 37. Bxe6+ {[%emt 0:02:47]} Kxe6 {[%emt 0:00:30]} 38. Ke3 {[%emt 0:00:00]} Rc1 {[%emt 0:00:30]} 39. Rd2 {[%emt 0:01:13]} Rc3+ {[%emt 0:00:30]} 40. Kf2 {[%emt 0:01:00]} Rxc5 {[%emt 0:01:30]} 41. Rd8 {[%emt 0:00:01]} e4 {[%emt 0:01:30]} 42. g4 {[%emt 0:00:30]} Rg5 {[%emt 0:00:00]} 43. Rh8 {[%emt 0:00:07]} Rxg4 {[%emt 0:00:00]} 44. Rxh6+ {[%emt 0:00:30]} Ke5 {[%emt 0:00:00]} 45. Rh7 {[%emt 0:00:00]} f5 {[%emt 0:00:00]} 46. Rxb7 {[%emt 0:00:18]} Kf4 {[%emt 0:00:30]} 47. h6 {[%emt 0:00:30]} e3+ {[%emt 0:00:00]} 48. Ke2 {[%emt 0:00:14]} Rg2+ {[%emt 0:00:00]} 49. Kd3 {[%emt 0:00:30]} Rd2+ {[%emt 0:00:00]} 50. Kc3 {[%emt 0:00:25]} Rh2 {[%emt 0:00:00]} 51. h7 {[%emt 0:00:00]} Kf3 {[%emt 0:00:30]} 52. Re7 {[%emt 0:00:52]} f4 {[%emt 0:00:00]} 53. Kd3 {[%emt 0:00:00]} Kf2 {[%emt 0:01:00]} 54. b4 {[%emt 0:00:37]} Rh6 {[%emt 0:00:00]} 55. a4 {[%emt 0:00:21]} Rh1 {[%emt 0:00:00]} 56. Rf7 {[%emt 0:02:23]} f3 {[%emt 0:00:30]} 57. Re7 {[%emt 0:00:30]} e2 {[%emt 0:00:30]} 58. Kd2 {[%emt 0:00:00]} Rxh7 {[%emt 0:00:00]} 0-1

[Event "5th Baskent University Open 2022"]
[Site "Ankara"]
[Date "2022.07.05"]
[Round "6.23"]
[White "Hamurcu, Mehmet"]
[Black "Buke, Furkan"]
[Result "0-1"]
[ECO "B22"]
[WhiteElo "1532"]
[BlackElo "1979"]
[Annotator "TA"]
[PlyCount "58"]
[EventDate "2022.07.02"]
[EventType "swiss"]
[EventCountry "TUR"]
[SourceTitle "playchess.com"]
[Source "ChessBase"]
[SourceQuality "1"]
[TimeControl "5400+30"]

{[%evp 21,58,29,29,27,38,8,8,8,8,10,278,271,295,308,295,246,226,0,-3,-29,-17,-26,-18,-23,-43,-112,-90,-95,-60,-143,0,-93,-27,-390,-376,-465,-463,-578,-577]} 1. e4 {[%emt 0:01:00]} c5 {[%emt 0:01:00]} 2. c3 {[%emt 0:00:00]} d5 {[%emt 0:01:30]} 3. exd5 {[%emt 0:00:00]} Qxd5 {[%emt 0:00:30]} 4. d4 {[%emt 0:00:00]} Nf6 {[%emt 0:00:00]} 5. Nf3 {[%emt 0:00:00]} e6 {[%emt 0:01:00]} 6. Na3 {[%emt 0:02:30]} Nc6 {[%emt 0:01:30]} 7. Nb5 {[%emt 0:04:30]} Qd8 {[%emt 0:01:30]} 8. dxc5 {[%emt 0:22:30]} Bxc5 {[%emt 0:01:30]} 9. Qxd8+ {[%emt 0:02:30]} Kxd8 {[%emt 0:00:00]} 10. Bf4 {[%emt 0:01:30]} Nd5 {[%emt 0:16:00]} 11. O-O-O {[%emt 0:05:30]} Ke7 $1 {[%emt 0:02:30]} 12. Bg3 {[%emt 0:16:30] B22: Sicilian: 2 c3.} a6 {[%emt 0:02:30]} 13. c4 {[%emt 0:03:30] [#]} axb5 $146 {[%emt 0:06:30]} ({Predecessor:} 13... Nf6 14. Nc3 Rd8 15. Bd3 Bd7 16. a3 a5 17. Rhe1 Nd4 18. Nxd4 Bxd4 19. Nd5+ Nxd5 20. cxd5 {1-0 (75) Nakamura,H (2736)-Fedoseev,V (2704) Chess.com INT 2022}) 14. cxd5 {[%emt 0:00:30] The position is equal.} exd5 {[%emt 0:01:30]} 15. Rxd5 {[%emt 0:00:30]} b6 {[%emt 0:16:30][%mdl 8192]} (15... Rxa2 $11 {and Black has nothing to worry.} 16. Rxc5 Ra1+ 17. Kd2 Rd8+ 18. Ke3 Rdd1) 16. Bxb5 $18 {[%emt 0:06:30]} Nb4 {[%emt 0:00:30]} 17. Re1+ $1 {[%emt 0:04:30]} Be6 {[%emt 0:00:30]} 18. Rd7+ {[%emt 0:06:30]} Kf6 {[%emt 0:06:30][%cal Be7f6,Bf6g6,Bg6h6][%mdl 32]} 19. Be5+ $2 {[%emt 0:07:27]} (19. Bh4+ $18 g5 20. Bxg5+ Kg6 21. Rxe6+ $1 {[%mdl 512]} fxe6 22. a3) 19... Kg6 $11 {[%emt 0:01:30]} 20. Bd3+ {[%emt 0:02:13]} Nxd3+ {[%emt 0:08:30]} 21. Rxd3 {[%emt 0:00:02]} Rxa2 {[%emt 0:00:30]} 22. Bd6 {[%emt 0:06:12]} Rc8 {[%emt 0:11:14] Hoping for ...Bb4+.} ({Don't do} 22... Bxf2 23. Rxe6+ $1 fxe6 24. Ne5+ Kh5 25. Rh3+ Bh4 26. g4+ Kg5 27. Be7+ Kf4 28. Nd3+ Kxg4 29. Rxh4+ Kf3 30. Kd2 $16) 23. Ne5+ {[%emt 0:03:34]} (23. Bxc5 $15 Rxc5+ 24. Kb1) 23... Kh6 {[%emt 0:00:56]} 24. Kb1 {[%emt 0:03:28]} Rca8 {[%emt 0:03:52] aiming for ...Ra1+.} 25. Kc1 {[%emt 0:00:21]} (25. Re4 $15) 25... Rc8 {[%emt 0:02:17]} (25... Bxf2 $142 26. Re4 Rc8+ 27. Rc3 Rxc3+ 28. bxc3 Bc5 29. Bxc5 bxc5 30. Rh4+ Kg5 31. Nf3+ Kg6) 26. Kb1 $1 $17 {[%emt 0:00:15]} Ra5 {[%emt 0:02:01]} ({Black should play} 26... Bxf2 $17 27. Rf1 {[#]} Ra5 $1) 27. b4 $2 {[%emt 0:00:59][%mdl 8192]} (27. Nxf7+ $1 $11 Bxf7 28. Rh3+ Bh5 29. Bxc5 Rcxc5 30. g4) 27... Rb5 $19 {[%emt 0:00:56]} 28. Bxc5 {[%emt 0:00:21]} Rcxc5 {[%emt 0:00:00]} ({Avoid the trap} 28... bxc5 $2 29. Rf3 $19 (29. Rd6 $2 g6 $19)) 29. Re4 {[%emt 0:00:53]} Rxe5 {[%emt 0:00:17] Weighted Error Value: White=0.64/Black=0.37} 0-1

[Event "5th Baskent University Open 2022"]
[Site "Ankara"]
[Date "2022.07.05"]
[Round "6.24"]
[White "Tarim, Metehan"]
[Black "Saka, Omer"]
[Result "0-1"]
[ECO "C04"]
[WhiteElo "1536"]
[BlackElo "1832"]
[Annotator "NA RC COMBH"]
[PlyCount "144"]
[EventDate "2022.07.02"]
[EventType "swiss"]
[EventCountry "TUR"]
[SourceTitle "playchess.com"]
[Source "ChessBase"]
[SourceQuality "1"]
[TimeControl "5400+30"]

1. e4 {[%emt 0:01:00]} e6 {[%emt 0:01:00]} 2. d4 {[%emt 0:00:30]} d5 {[%emt 0:00:30]} 3. Nd2 {[%emt 0:00:00]} Nc6 {[%emt 0:00:30]} 4. Ngf3 {[%emt 0:00:00]} Nf6 {[%emt 0:00:30]} 5. e5 {[%emt 0:00:00]} Nd7 {[%emt 0:00:30]} 6. Nb3 {[%emt 0:00:00]} Be7 {[%emt 0:02:30]} 7. c3 {[%emt 0:01:30]} f6 {[%emt 0:07:30]} 8. Bb5 {[%emt 0:00:30]} O-O {[%emt 0:02:30]} 9. exf6 {[%emt 0:03:30]} Bxf6 {[%emt 0:01:30]} 10. O-O {[%emt 0:00:00]} a5 {[%emt 0:05:30]} 11. Re1 {[%emt 0:01:00]} a4 {[%emt 0:05:30]} 12. Nbd2 {[%emt 0:01:30]} Nb6 {[%emt 0:00:30]} 13. Nf1 $16 {[%emt 0:07:30]} Bd7 {[%emt 0:00:30]} 14. Ne3 {[%emt 0:01:30]} Qe8 {[%emt 0:11:30]} 15. Ng4 {[%emt 0:08:30]} Qh5 {[%emt 0:06:30]} 16. Nfe5 {[%emt 0:00:30]} Qe8 {[%emt 0:03:30]} 17. Bxc6 {[%emt 0:04:30]} (17. Nxd7 $16 Qxd7 18. Qe2) 17... Bxc6 {[%emt 0:03:30]} 18. Nxf6+ {[%emt 0:02:30]} Rxf6 {[%emt 0:01:30]} 19. Bg5 {[%emt 0:01:30]} Rf5 {[%emt 0:05:30]} 20. Qg4 {[%emt 0:01:30]} Nc4 {[%emt 0:00:30]} 21. Bh6 {[%emt 0:04:30]} g6 {[%emt 0:00:30]} 22. Nd3 {[%emt 0:03:30]} Qf7 {[%emt 0:04:30]} 23. b3 {[%emt 0:00:30]} Nd6 {[%emt 0:02:30]} 24. Ne5 {[%emt 0:01:30]} Qf6 {[%emt 0:01:30]} 25. f3 {[%emt 0:02:30]} g5 {[%emt 0:08:30]} 26. Qh3 {[%emt 0:00:30]} Nf7 {[%emt 0:01:30]} 27. Ng4 {[%emt 0:00:00]} Qg6 {[%emt 0:00:30]} 28. bxa4 {[%emt 0:02:00]} Re8 {[%emt 0:00:30]} 29. g3 {[%emt 0:01:30]} Rf6 {[%emt 0:01:30]} 30. f4 {[%emt 0:00:30]} Nxh6 {[%emt 0:01:30]} 31. Nxf6+ {[%emt 0:00:30]} Qxf6 {[%emt 0:00:30]} 32. fxg5 {[%emt 0:00:30]} Qxg5 {[%emt 0:00:30]} 33. Rxe6 {[%emt 0:00:30]} Ng4 {[%emt 0:00:30]} 34. Rxe8+ {[%emt 0:00:30]} Bxe8 {[%emt 0:00:30]} 35. Re1 {[%emt 0:00:30]} Bg6 {[%emt 0:00:00]} 36. Qh4 {[%emt 0:00:00]} Qxh4 {[%emt 0:01:00]} 37. gxh4 {[%emt 0:00:00]} Be4 {[%emt 0:00:30]} 38. c4 {[%emt 0:00:30]} Nf6 {[%emt 0:01:30]} 39. cxd5 {[%emt 0:01:30]} Kf7 {[%emt 0:00:00]} 40. Kf2 {[%emt 0:01:30]} Bxd5 {[%emt 0:01:00]} 41. a3 {[%emt 0:00:30]} Be4 {[%emt 0:02:04]} 42. Kg3 {[%emt 0:00:30]} Ke6 {[%emt 0:01:07]} 43. Kf4 {[%emt 0:00:00]} Kd5 {[%emt 0:00:31]} 44. Kg5 {[%emt 0:00:00]} Ne8 {[%emt 0:00:21]} 45. h5 {[%emt 0:01:30]} Kxd4 {[%emt 0:00:49]} 46. h6 {[%emt 0:00:30]} c5 {[%emt 0:01:13]} 47. Rd1+ {[%emt 0:00:30]} Bd3 {[%emt 0:00:00]} 48. Re1 {[%emt 0:00:00]} Nd6 {[%emt 0:00:18]} 49. Kf6 {[%emt 0:00:00]} c4 {[%emt 0:00:41]} 50. Re6 {[%emt 0:00:30]} Ne4+ {[%emt 0:00:40]} 51. Kg7 {[%emt 0:00:00]} Nc5 {[%emt 0:00:54]} 52. Rd6+ {[%emt 0:00:00]} Kc3 {[%emt 0:00:01]} 53. a5 {[%emt 0:00:30]} Kb2 {[%emt 0:01:33]} 54. Rd5 {[%emt 0:01:30]} c3 {[%emt 0:01:36]} 55. Rxc5 {[%emt 0:01:30]} c2 {[%emt 0:00:05]} 56. Rd5 {[%emt 0:01:30]} c1=Q {[%emt 0:01:27]} 57. Rxd3 {[%emt 0:00:00]} Qg5+ {[%emt 0:00:00]} 58. Kxh7 {[%emt 0:01:00]} Qf5+ {[%emt 0:00:29]} 59. Kg7 {[%emt 0:00:30]} Qxd3 {[%emt 0:00:30]} 60. h7 {[%emt 0:00:00]} Qd7+ {[%emt 0:00:00]} 61. Kg8 {[%emt 0:00:00]} Qe8+ {[%emt 0:00:00]} 62. Kg7 {[%emt 0:00:30]} Qe5+ {[%emt 0:00:28]} 63. Kg8 {[%emt 0:00:00]} Qxh2 {[%emt 0:00:58]} 64. h8=Q+ {[%emt 0:00:00]} Qxh8+ {[%emt 0:00:30]} 65. Kxh8 {[%emt 0:00:00]} Kxa3 {[%emt 0:00:00]} 66. Kg7 {[%emt 0:00:00]} Kb4 {[%emt 0:00:00]} 67. Kf6 {[%emt 0:00:30]} Kxa5 {[%emt 0:00:00]} 68. Ke5 {[%emt 0:00:30]} Kb4 {[%emt 0:00:29]} 69. Kd4 {[%emt 0:00:00]} b5 {[%emt 0:00:14]} 70. Kd3 {[%emt 0:00:00]} Kb3 {[%emt 0:00:00]} 71. Kd2 {[%emt 0:00:30]} b4 {[%emt 0:00:00]} 72. Kd1 {[%emt 0:00:30]} Ka2 {[%emt 0:00:05]} 0-1